[Event "Titled Tuesday Blitz March 07 Early 2023"]
[White "Odegov, Artem"]
[Black "Zakhartsov, Vladimir"]
[WhiteFideId "34183644"]
[BlackFideId "4145097"]
[WhiteElo "2300"]
[BlackElo "2521"]
[Result "0-1"]
[Round "06"]
[TimeControl "180+2"]
[Date "2023.03.07"]
[WhiteClock "0:00:01"]
[BlackClock "0:00:04"]

1. d4 {[%clk 0:03:00]}  f6 {[%clk 0:02:49]} 2. Nf3 {[%clk 0:02:55]}  e6 {[%clk 0:02:42]} 3. c4 {[%clk 0:02:55]}  g6 {[%clk 0:02:40]} 4. Nc3 {[%clk 0:02:54]}  Bg7 {[%clk 0:02:40]} 5. e4 {[%clk 0:02:55]}  Ne7 {[%clk 0:02:39]} 6. Be3 {[%clk 0:02:51]}  d5 {[%clk 0:02:32]} 7. cxd5 {[%clk 0:02:48]}  exd5 {[%clk 0:02:32]} 8. e5 {[%clk 0:02:45]}  fxe5 {[%clk 0:02:27]} 9. dxe5 {[%clk 0:02:45]}  O-O {[%clk 0:02:21]} 10. Be2 {[%clk 0:02:43]}  Nbc6 {[%clk 0:02:13]} 11. Qb3 {[%clk 0:02:08]}  Nxe5 {[%clk 0:02:04]} 12. O-O-O {[%clk 0:01:57]}  c6 {[%clk 0:01:58]} 13. Rhe1 {[%clk 0:01:53]}  Nf7 {[%clk 0:01:26]} 14. Nd4 {[%clk 0:01:43]}  Nf5 {[%clk 0:01:23]} 15. Nxf5 {[%clk 0:01:40]}  Bxf5 {[%clk 0:01:24]} 16. Bc5 {[%clk 0:01:14]}  Re8 {[%clk 0:01:15]} 17. Bf3 {[%clk 0:00:34]}  Rxe1 {[%clk 0:00:43]} 18. Rxe1 {[%clk 0:00:34]}  Ne5 {[%clk 0:00:44]} 19. Be2 {[%clk 0:00:14]}  b6 {[%clk 0:00:32]} 20. Be3 {[%clk 0:00:12]}  Kh8 {[%clk 0:00:31]} 21. Rd1 {[%clk 0:00:11]}  Qe7 {[%clk 0:00:21]} 22. h3 {[%clk 0:00:09]}  Be6 {[%clk 0:00:17]} 23. Qc2 {[%clk 0:00:07]}  Rd8 {[%clk 0:00:16]} 24. g4 {[%clk 0:00:02]}  c5 {[%clk 0:00:16]} 25. f4 {[%clk 0:00:02]}  Nc6 {[%clk 0:00:13]} 26. Bf3 {[%clk 0:00:02]}  Nb4 {[%clk 0:00:12]} 27. Qg2 {[%clk 0:00:02]}  d4 {[%clk 0:00:11]} 28. f5 {[%clk 0:00:03]}  Bf7 {[%clk 0:00:07]} 29. a3 {[%clk 0:00:01]}  dxc3 {[%clk 0:00:05]} 30. Rxd8+ {[%clk 0:00:02]}  Qxd8 {[%clk 0:00:05]} 31. axb4 {[%clk 0:00:03]}  cxb2+ {[%clk 0:00:05]} 32. Kb1 {[%clk 0:00:03]}  Qd3+ {[%clk 0:00:04]} 33. Qc2 {[%clk 0:00:03]}  Ba2+ {[%clk 0:00:03]} 34. Kxa2 {[%clk 0:00:02]}  Qxc2 {[%clk 0:00:04]} 35. Ka3 {[%clk 0:00:01]}  b1=Q {[%clk 0:00:04]} 36. bxc5 {[%clk 0:00:01]}  Qbb3# {[%clk 0:00:04]} 0-1


[Site "https://www.chess.com"]

[Event "Titled Tuesday Blitz March 07 Early 2023"]
[White "Sielecki, Christof"]
[Black "Narayanan, Srinath"]
[WhiteFideId "4620437"]
[BlackFideId "5018420"]
[WhiteElo "2443"]
[BlackElo "2438"]
[Result "1/2-1/2"]
[Round "06"]
[TimeControl "180+2"]
[Date "2023.03.07"]
[WhiteClock "0:00:10"]
[BlackClock "0:01:17"]

1. e4 {[%clk 0:03:00]}  c5 {[%clk 0:02:58]} 2. Nf3 {[%clk 0:03:00]}  d6 {[%clk 0:02:57]} 3. Bb5+ {[%clk 0:03:00]}  Nd7 {[%clk 0:02:57]} 4. c3 {[%clk 0:03:00]}  Nf6 {[%clk 0:02:57]} 5. Qe2 {[%clk 0:03:00]}  a6 {[%clk 0:02:56]} 6. Ba4 {[%clk 0:03:00]}  b5 {[%clk 0:02:55]} 7. Bc2 {[%clk 0:03:00]}  Bb7 {[%clk 0:02:56]} 8. d4 {[%clk 0:03:00]}  Rc8 {[%clk 0:02:54]} 9. O-O {[%clk 0:02:43]}  e5 {[%clk 0:02:47]} 10. d5 {[%clk 0:02:42]}  g6 {[%clk 0:02:42]} 11. a4 {[%clk 0:02:35]}  Qb6 {[%clk 0:02:37]} 12. Na3 {[%clk 0:02:29]}  c4 {[%clk 0:02:37]} 13. Be3 {[%clk 0:02:27]}  Nc5 {[%clk 0:02:35]} 14. Nd2 {[%clk 0:02:10]}  Bg7 {[%clk 0:02:29]} 15. axb5 {[%clk 0:02:10]}  axb5 {[%clk 0:02:29]} 16. b4 {[%clk 0:02:04]}  cxb3 {[%clk 0:02:28]} 17. Nxb3 {[%clk 0:02:03]}  Nfd7 {[%clk 0:02:23]} 18. Nxc5 {[%clk 0:01:57]}  Nxc5 {[%clk 0:02:22]} 19. Qxb5+ {[%clk 0:01:54]}  Qxb5 {[%clk 0:02:21]} 20. Nxb5 {[%clk 0:01:55]}  Bf8 {[%clk 0:01:55]} 21. Ra7 {[%clk 0:01:29]}  Ba6 {[%clk 0:01:54]} 22. Nc7+ {[%clk 0:01:01]}  Rxc7 {[%clk 0:01:54]} 23. Rxc7 {[%clk 0:01:02]}  Bxf1 {[%clk 0:01:54]} 24. Kxf1 {[%clk 0:01:02]}  Be7 {[%clk 0:01:42]} 25. Rc8+ {[%clk 0:00:40]}  Bd8 {[%clk 0:01:42]} 26. Bg5 {[%clk 0:00:37]}  Kd7 {[%clk 0:01:32]} 27. Ra8 {[%clk 0:00:17]}  Re8 {[%clk 0:01:32]} 28. Be3 {[%clk 0:00:16]}  Bb6 {[%clk 0:01:20]} 29. Rxe8 {[%clk 0:00:13]}  Kxe8 {[%clk 0:01:19]} 30. Ke2 {[%clk 0:00:11]}  Kd7 {[%clk 0:01:17]} 31. Bxc5 {[%clk 0:00:10]}  Bxc5 {[%clk 0:01:17]} 32. f3 {[%clk 0:00:10]} 1/2-1/2


[Site "https://www.chess.com"]

[Event "Titled Tuesday Blitz March 07 Early 2023"]
[White "Ilinca Ilinca, Felix Antonio"]
[Black "Harsha Bharathakoti"]
[WhiteFideId "54764998"]
[BlackFideId "5078776"]
[WhiteElo "2031"]
[BlackElo "2481"]
[Result "0-1"]
[Round "06"]
[TimeControl "180+2"]
[Date "2023.03.07"]
[WhiteClock "0:00:35"]
[BlackClock "0:00:19"]

1. e4 {[%clk 0:03:00]}  c6 {[%clk 0:02:52]} 2. d4 {[%clk 0:02:53]}  d5 {[%clk 0:02:51]} 3. f3 {[%clk 0:02:54]}  g6 {[%clk 0:02:50]} 4. Nc3 {[%clk 0:02:52]}  Bg7 {[%clk 0:02:48]} 5. Be3 {[%clk 0:02:51]}  Qb6 {[%clk 0:02:46]} 6. Qd2 {[%clk 0:02:44]}  Qxb2 {[%clk 0:02:44]} 7. Rb1 {[%clk 0:02:44]}  Qa3 {[%clk 0:02:45]} 8. Bd3 {[%clk 0:02:34]}  Nf6 {[%clk 0:02:30]} 9. e5 {[%clk 0:02:31]}  Nfd7 {[%clk 0:02:28]} 10. h4 {[%clk 0:02:25]}  h5 {[%clk 0:02:06]} 11. Nh3 {[%clk 0:02:21]}  b5 {[%clk 0:01:44]} 12. e6 {[%clk 0:02:15]}  fxe6 {[%clk 0:01:44]} 13. Bxg6+ {[%clk 0:02:12]}  Kd8 {[%clk 0:01:44]} 14. Ng5 {[%clk 0:02:10]}  Nb6 {[%clk 0:01:37]} 15. Rb3 {[%clk 0:02:04]}  Qa5 {[%clk 0:01:32]} 16. Nf7+ {[%clk 0:01:59]}  Kd7 {[%clk 0:01:32]} 17. O-O {[%clk 0:01:44]}  Nc4 {[%clk 0:01:29]} 18. Qd3 {[%clk 0:01:44]}  Rf8 {[%clk 0:01:21]} 19. Bxh5 {[%clk 0:01:41]}  Na6 {[%clk 0:01:20]} 20. Bf2 {[%clk 0:01:37]}  Bf6 {[%clk 0:00:55]} 21. Re1 {[%clk 0:01:31]}  Nc7 {[%clk 0:00:55]} 22. g4 {[%clk 0:01:23]}  Ba6 {[%clk 0:00:49]} 23. g5 {[%clk 0:01:23]}  Bh8 {[%clk 0:00:37]} 24. Ne2 {[%clk 0:01:09]}  Qd2 {[%clk 0:00:27]} 25. Nf4 {[%clk 0:01:04]}  Qxf4 {[%clk 0:00:24]} 26. Nh6 {[%clk 0:00:52]}  Qd2 {[%clk 0:00:22]} 27. Qf1 {[%clk 0:00:49]}  Bxd4 {[%clk 0:00:19]} 28. Re2 {[%clk 0:00:50]}  Bxf2+ {[%clk 0:00:18]} 29. Rxf2 {[%clk 0:00:51]}  Qd4 {[%clk 0:00:18]} 30. Rd3 {[%clk 0:00:50]}  Qxh4 {[%clk 0:00:18]} 31. Bg4 {[%clk 0:00:51]}  Qxg5 {[%clk 0:00:18]} 32. Qh3 {[%clk 0:00:50]}  Rh8 {[%clk 0:00:18]} 33. Nf7 {[%clk 0:00:47]}  Qc1+ {[%clk 0:00:15]} 34. Qf1 {[%clk 0:00:46]}  Qxf1+ {[%clk 0:00:15]} 35. Rxf1 {[%clk 0:00:47]}  Rhf8 {[%clk 0:00:14]} 36. Ng5 {[%clk 0:00:48]}  Ne5 {[%clk 0:00:15]} 37. Ra3 {[%clk 0:00:47]}  Nxg4 {[%clk 0:00:15]} 38. fxg4 {[%clk 0:00:48]}  Rg8 {[%clk 0:00:15]} 39. Nf3 {[%clk 0:00:47]}  Rxg4+ {[%clk 0:00:15]} 40. Kf2 {[%clk 0:00:47]}  Rf4 {[%clk 0:00:14]} 41. Ke3 {[%clk 0:00:46]}  Re4+ {[%clk 0:00:15]} 42. Kd2 {[%clk 0:00:45]}  b4 {[%clk 0:00:14]} 43. Rxa6 {[%clk 0:00:45]}  Nxa6 {[%clk 0:00:15]} 44. Ng5 {[%clk 0:00:44]}  Nc5 {[%clk 0:00:15]} 45. Rh1 {[%clk 0:00:38]}  Rg8 {[%clk 0:00:14]} 46. Nxe4 {[%clk 0:00:35]}  Nxe4+ {[%clk 0:00:15]} 47. Kc1 {[%clk 0:00:36]}  Rg2 {[%clk 0:00:16]} 48. Kb2 {[%clk 0:00:37]}  c5 {[%clk 0:00:16]} 49. Kb3 {[%clk 0:00:37]}  Nc3 {[%clk 0:00:15]} 50. a3 {[%clk 0:00:36]}  a5 {[%clk 0:00:15]} 51. axb4 {[%clk 0:00:36]}  axb4 {[%clk 0:00:16]} 52. Ra1 {[%clk 0:00:36]}  Kd6 {[%clk 0:00:16]} 53. Ra6+ {[%clk 0:00:33]}  Ke5 {[%clk 0:00:17]} 54. Ra7 {[%clk 0:00:34]}  Kd4 {[%clk 0:00:17]} 55. Rxe7 {[%clk 0:00:35]}  e5 {[%clk 0:00:18]} 56. Re8 {[%clk 0:00:34]}  Rg1 {[%clk 0:00:18]} 57. Re7 {[%clk 0:00:35]}  Rb1# {[%clk 0:00:19]} 0-1


[Site "https://www.chess.com"]

[Event "Titled Tuesday Blitz March 07 Early 2023"]
[White "Kramnik, Vladimir"]
[Black "Fernandez Guillen, Ernesto J."]
[WhiteFideId "4101588"]
[BlackFideId "3512428"]
[WhiteElo "2712"]
[BlackElo "2423"]
[Result "1-0"]
[Round "06"]
[TimeControl "180+2"]
[Date "2023.03.07"]
[WhiteClock "0:01:13"]
[BlackClock "0:00:14"]

1. Nf3 {[%clk 0:03:00]}  Nf6 {[%clk 0:02:59]} 2. g3 {[%clk 0:03:01]}  g6 {[%clk 0:03:00]} 3. Bg2 {[%clk 0:03:01]}  Bg7 {[%clk 0:02:58]} 4. O-O {[%clk 0:03:02]}  d5 {[%clk 0:02:59]} 5. c4 {[%clk 0:03:01]}  O-O {[%clk 0:02:58]} 6. d4 {[%clk 0:02:59]}  c6 {[%clk 0:02:58]} 7. Ne5 {[%clk 0:02:58]}  Nbd7 {[%clk 0:02:58]} 8. Nc3 {[%clk 0:02:57]}  dxc4 {[%clk 0:02:40]} 9. Nxc4 {[%clk 0:02:56]}  Nb6 {[%clk 0:02:40]} 10. Ne5 {[%clk 0:02:54]}  Nfd7 {[%clk 0:02:39]} 11. Nf3 {[%clk 0:02:53]}  e5 {[%clk 0:02:39]} 12. Bg5 {[%clk 0:02:50]}  Qe8 {[%clk 0:02:35]} 13. Ne4 {[%clk 0:02:24]}  exd4 {[%clk 0:02:20]} 14. Nxd4 {[%clk 0:02:24]}  Qe5 {[%clk 0:02:13]} 15. e3 {[%clk 0:02:15]}  Nf6 {[%clk 0:02:04]} 16. Bxf6 {[%clk 0:02:07]}  Bxf6 {[%clk 0:02:05]} 17. Nxf6+ {[%clk 0:02:07]}  Qxf6 {[%clk 0:02:06]} 18. Rc1 {[%clk 0:02:04]}  Be6 {[%clk 0:02:04]} 19. a4 {[%clk 0:02:02]}  Bd5 {[%clk 0:01:47]} 20. a5 {[%clk 0:01:53]}  Bxg2 {[%clk 0:01:46]} 21. Kxg2 {[%clk 0:01:53]}  Nd5 {[%clk 0:01:31]} 22. a6 {[%clk 0:01:53]}  Qe7 {[%clk 0:01:32]} 23. Qf3 {[%clk 0:01:41]}  Rac8 {[%clk 0:01:11]} 24. axb7 {[%clk 0:01:39]}  Qxb7 {[%clk 0:01:11]} 25. Rfd1 {[%clk 0:01:30]}  Ne7 {[%clk 0:00:35]} 26. Rc2 {[%clk 0:01:19]}  Rfe8 {[%clk 0:00:35]} 27. Rdc1 {[%clk 0:01:18]}  Qb6 {[%clk 0:00:12]} 28. Nxc6 {[%clk 0:01:17]}  Nxc6 {[%clk 0:00:13]} 29. Rxc6 {[%clk 0:01:17]}  Rxc6 {[%clk 0:00:13]} 30. Rxc6 {[%clk 0:01:14]}  Qxc6 {[%clk 0:00:14]} 31. Qxc6 {[%clk 0:01:13]} 1-0


[Site "https://www.chess.com"]

[Event "Titled Tuesday Blitz March 07 Early 2023"]
[White "De Silva, L M S T"]
[Black "Drygalov, Sergey"]
[WhiteFideId "9953698"]
[BlackFideId "24171743"]
[WhiteElo "2403"]
[BlackElo "2533"]
[Result "1-0"]
[Round "06"]
[TimeControl "180+2"]
[Date "2023.03.07"]
[WhiteClock "0:00:10"]
[BlackClock "0:00:09"]

1. e4 {[%clk 0:03:00]}  c5 {[%clk 0:03:00]} 2. Nf3 {[%clk 0:03:01]}  d6 {[%clk 0:03:00]} 3. Bb5+ {[%clk 0:03:01]}  Nd7 {[%clk 0:03:00]} 4. Ba4 {[%clk 0:03:01]}  Nf6 {[%clk 0:03:00]} 5. O-O {[%clk 0:03:01]}  a6 {[%clk 0:02:56]} 6. c4 {[%clk 0:03:01]}  e6 {[%clk 0:02:56]} 7. d4 {[%clk 0:03:01]}  cxd4 {[%clk 0:02:56]} 8. Qxd4 {[%clk 0:03:02]}  Be7 {[%clk 0:02:56]} 9. Nc3 {[%clk 0:03:03]}  O-O {[%clk 0:02:56]} 10. Rd1 {[%clk 0:03:03]}  Qc7 {[%clk 0:02:56]} 11. Bxd7 {[%clk 0:03:00]}  Bxd7 {[%clk 0:02:50]} 12. Bf4 {[%clk 0:03:01]}  Rac8 {[%clk 0:02:46]} 13. Bxd6 {[%clk 0:02:52]}  Bxd6 {[%clk 0:02:46]} 14. Qxd6 {[%clk 0:02:53]}  Qxd6 {[%clk 0:02:47]} 15. Rxd6 {[%clk 0:02:54]}  Bc6 {[%clk 0:02:35]} 16. e5 {[%clk 0:02:50]}  Bxf3 {[%clk 0:02:33]} 17. exf6 {[%clk 0:02:45]}  Bc6 {[%clk 0:02:33]} 18. fxg7 {[%clk 0:02:46]}  Kxg7 {[%clk 0:02:34]} 19. c5 {[%clk 0:02:35]}  Kf6 {[%clk 0:02:33]} 20. b4 {[%clk 0:02:34]}  Rg8 {[%clk 0:02:33]} 21. g3 {[%clk 0:02:30]}  h5 {[%clk 0:02:34]} 22. Rad1 {[%clk 0:02:21]}  Rg4 {[%clk 0:02:30]} 23. a3 {[%clk 0:02:16]}  Rcg8 {[%clk 0:02:25]} 24. Nd5+ {[%clk 0:02:13]}  Bxd5 {[%clk 0:02:09]} 25. R1xd5 {[%clk 0:02:14]}  h4 {[%clk 0:02:08]} 26. Kg2 {[%clk 0:02:08]}  Rc4 {[%clk 0:01:53]} 27. Rd3 {[%clk 0:02:07]}  Rh8 {[%clk 0:01:42]} 28. Rd7 {[%clk 0:01:52]}  h3+ {[%clk 0:01:42]} 29. Kf3 {[%clk 0:01:40]}  Rc1 {[%clk 0:01:43]} 30. Rxb7 {[%clk 0:01:31]}  Rh1 {[%clk 0:01:40]} 31. Kg4 {[%clk 0:01:24]}  Rxh2 {[%clk 0:01:39]} 32. Rf3+ {[%clk 0:01:25]}  Ke5 {[%clk 0:01:39]} 33. Rfxf7 {[%clk 0:01:23]}  Rh1 {[%clk 0:01:32]} 34. Rh7 {[%clk 0:01:20]}  Rg8+ {[%clk 0:01:32]} 35. Rbg7 {[%clk 0:01:21]}  Rxg7+ {[%clk 0:01:12]} 36. Rxg7 {[%clk 0:01:22]}  Ke4 {[%clk 0:01:12]} 37. Rh7 {[%clk 0:01:18]}  h2 {[%clk 0:01:11]} 38. c6 {[%clk 0:01:06]}  e5 {[%clk 0:01:02]} 39. c7 {[%clk 0:00:55]}  Rc1 {[%clk 0:01:01]} 40. Rxh2 {[%clk 0:00:53]}  Rxc7 {[%clk 0:01:01]} 41. f3+ {[%clk 0:00:34]}  Ke3 {[%clk 0:00:59]} 42. Kf5 {[%clk 0:00:28]}  Re7 {[%clk 0:00:55]} 43. f4 {[%clk 0:00:20]}  e4 {[%clk 0:00:55]} 44. Kf6 {[%clk 0:00:15]}  Re8 {[%clk 0:00:56]} 45. f5 {[%clk 0:00:11]}  Kf3 {[%clk 0:00:55]} 46. Kf7 {[%clk 0:00:11]}  Rb8 {[%clk 0:00:54]} 47. f6 {[%clk 0:00:11]}  Kxg3 {[%clk 0:00:53]} 48. Rb2 {[%clk 0:00:10]}  Kf3 {[%clk 0:00:26]} 49. Kg7 {[%clk 0:00:10]}  e3 {[%clk 0:00:23]} 50. f7 {[%clk 0:00:10]}  e2 {[%clk 0:00:21]} 51. Rb1 {[%clk 0:00:11]}  Ke3 {[%clk 0:00:10]} 52. f8=Q {[%clk 0:00:09]}  Rxf8 {[%clk 0:00:11]} 53. Kxf8 {[%clk 0:00:10]}  Kd2 {[%clk 0:00:12]} 54. a4 {[%clk 0:00:09]}  Kc2 {[%clk 0:00:12]} 55. Re1 {[%clk 0:00:10]}  Kd2 {[%clk 0:00:12]} 56. Rxe2+ {[%clk 0:00:08]}  Kxe2 {[%clk 0:00:13]} 57. b5 {[%clk 0:00:09]}  axb5 {[%clk 0:00:09]} 58. axb5 {[%clk 0:00:10]} 1-0


[Site "https://www.chess.com"]

[Event "Titled Tuesday Blitz March 07 Early 2023"]
[White "Starozhilov, Leonid"]
[Black "Mikhailovsky, Vladimir"]
[WhiteFideId "14106752"]
[BlackFideId "34105414"]
[WhiteElo "2402"]
[BlackElo "2293"]
[Result "0-1"]
[Round "06"]
[TimeControl "180+2"]
[Date "2023.03.07"]
[WhiteClock "0:00:04"]
[BlackClock "0:00:04"]

1. e4 {[%clk 0:03:00]}  Nf6 {[%clk 0:02:57]} 2. Nc3 {[%clk 0:02:59]}  e5 {[%clk 0:02:50]} 3. Nf3 {[%clk 0:02:58]}  Nc6 {[%clk 0:02:50]} 4. Bb5 {[%clk 0:02:59]}  Bb4 {[%clk 0:02:50]} 5. Bxc6 {[%clk 0:02:59]}  O-O {[%clk 0:02:51]} 6. d3 {[%clk 0:03:00]}  dxc6 {[%clk 0:02:44]} 7. h3 {[%clk 0:02:54]}  Re8 {[%clk 0:02:26]} 8. Bd2 {[%clk 0:02:49]}  Bf8 {[%clk 0:02:23]} 9. Ne2 {[%clk 0:02:49]}  c5 {[%clk 0:02:22]} 10. Ng3 {[%clk 0:02:49]}  Nd7 {[%clk 0:02:23]} 11. a4 {[%clk 0:02:46]}  Nb8 {[%clk 0:02:23]} 12. O-O {[%clk 0:02:45]}  Nc6 {[%clk 0:02:23]} 13. b3 {[%clk 0:02:45]}  f6 {[%clk 0:02:19]} 14. Nh2 {[%clk 0:02:40]}  Be6 {[%clk 0:02:18]} 15. f4 {[%clk 0:02:32]}  exf4 {[%clk 0:02:10]} 16. Bxf4 {[%clk 0:02:33]}  Bd6 {[%clk 0:02:08]} 17. Qd2 {[%clk 0:02:25]}  Bxf4 {[%clk 0:02:05]} 18. Qxf4 {[%clk 0:02:19]}  Nd4 {[%clk 0:01:57]} 19. Qd2 {[%clk 0:01:39]}  Qd6 {[%clk 0:01:52]} 20. Ne2 {[%clk 0:01:35]}  Rad8 {[%clk 0:01:43]} 21. Kh1 {[%clk 0:01:29]}  Nc6 {[%clk 0:01:27]} 22. Qc3 {[%clk 0:01:17]}  b6 {[%clk 0:01:23]} 23. Rf2 {[%clk 0:01:12]}  Nd4 {[%clk 0:01:12]} 24. Raf1 {[%clk 0:01:07]}  a5 {[%clk 0:01:06]} 25. Nxd4 {[%clk 0:01:07]}  Qxd4 {[%clk 0:00:52]} 26. Qe1 {[%clk 0:01:07]}  Qd6 {[%clk 0:00:44]} 27. Rf4 {[%clk 0:00:55]}  Qe5 {[%clk 0:00:35]} 28. Qf2 {[%clk 0:00:51]}  Qd4 {[%clk 0:00:27]} 29. Qg3 {[%clk 0:00:47]}  Qc3 {[%clk 0:00:25]} 30. R4f2 {[%clk 0:00:31]}  Kh8 {[%clk 0:00:24]} 31. Nf3 {[%clk 0:00:31]}  Rd7 {[%clk 0:00:17]} 32. Nh4 {[%clk 0:00:25]}  c4 {[%clk 0:00:17]} 33. bxc4 {[%clk 0:00:25]}  Bxc4 {[%clk 0:00:17]} 34. Nf5 {[%clk 0:00:21]}  Be6 {[%clk 0:00:16]} 35. Ne3 {[%clk 0:00:14]}  Qd4 {[%clk 0:00:14]} 36. Qf4 {[%clk 0:00:13]}  Qxa4 {[%clk 0:00:13]} 37. h4 {[%clk 0:00:09]}  Qb5 {[%clk 0:00:12]} 38. g4 {[%clk 0:00:09]}  h6 {[%clk 0:00:09]} 39. Kg2 {[%clk 0:00:08]}  Qc5 {[%clk 0:00:09]} 40. Qg3 {[%clk 0:00:08]}  a4 {[%clk 0:00:08]} 41. Nf5 {[%clk 0:00:05]}  Bxf5 {[%clk 0:00:08]} 42. gxf5 {[%clk 0:00:04]}  a3 {[%clk 0:00:08]} 43. c4 {[%clk 0:00:02]}  Red8 {[%clk 0:00:07]} 44. Rd1 {[%clk 0:00:02]}  Qb4 {[%clk 0:00:06]} 45. Rdd2 {[%clk 0:00:03]}  Qb3 {[%clk 0:00:06]} 46. e5 {[%clk 0:00:02]}  Rxd3 {[%clk 0:00:05]} 47. Rxd3 {[%clk 0:00:02]}  Qxd3 {[%clk 0:00:05]} 48. Qg4 {[%clk 0:00:02]}  Qd4 {[%clk 0:00:04]} 49. Qg6 {[%clk 0:00:01]}  Qxe5 {[%clk 0:00:04]} 50. Rf3 {[%clk 0:00:01]}  a2 {[%clk 0:00:03]} 51. Rg3 {[%clk 0:00:01]}  Qxg3+ {[%clk 0:00:04]} 52. Kxg3 {[%clk 0:00:01]}  a1=Q {[%clk 0:00:05]} 53. Qf7 {[%clk 0:00:01]}  Qc3+ {[%clk 0:00:04]} 54. Kg4 {[%clk 0:00:02]}  Qd4+ {[%clk 0:00:03]} 55. Kh5 {[%clk 0:00:03]}  Qd1+ {[%clk 0:00:04]} 56. Kg6 {[%clk 0:00:04]}  Qg4# {[%clk 0:00:04]} 0-1


[Site "https://www.chess.com"]

[Event "Titled Tuesday Blitz March 07 Early 2023"]
[White "Zahid, Sanatan"]
[Black "Maze, Sebastien"]
[WhiteFideId "10201963"]
[BlackFideId "613762"]
[WhiteElo "1865"]
[BlackElo "2462"]
[Result "0-1"]
[Round "06"]
[TimeControl "180+2"]
[Date "2023.03.07"]
[WhiteClock "0:00:39"]
[BlackClock "0:00:14"]

1. d4 {[%clk 0:03:00]}  Nf6 {[%clk 0:02:59]} 2. Nc3 {[%clk 0:03:00]}  d5 {[%clk 0:02:56]} 3. Bf4 {[%clk 0:02:56]}  a6 {[%clk 0:02:55]} 4. e3 {[%clk 0:02:56]}  e6 {[%clk 0:02:51]} 5. g4 {[%clk 0:02:56]}  c5 {[%clk 0:02:48]} 6. g5 {[%clk 0:02:56]}  Nfd7 {[%clk 0:02:47]} 7. Nf3 {[%clk 0:02:56]}  Nc6 {[%clk 0:02:47]} 8. h4 {[%clk 0:02:53]}  b5 {[%clk 0:02:47]} 9. Ne2 {[%clk 0:02:52]}  Bb7 {[%clk 0:02:42]} 10. Ng3 {[%clk 0:02:52]}  Qa5+ {[%clk 0:02:29]} 11. c3 {[%clk 0:02:26]}  b4 {[%clk 0:02:28]} 12. Bh3 {[%clk 0:02:26]}  bxc3 {[%clk 0:02:17]} 13. O-O {[%clk 0:02:26]}  cxd4 {[%clk 0:02:10]} 14. exd4 {[%clk 0:02:22]}  cxb2 {[%clk 0:02:09]} 15. Rb1 {[%clk 0:02:22]}  Ba3 {[%clk 0:02:08]} 16. Qb3 {[%clk 0:02:15]}  Qb4 {[%clk 0:02:02]} 17. Qxb4 {[%clk 0:02:09]}  Nxb4 {[%clk 0:01:59]} 18. Bd6 {[%clk 0:02:09]}  a5 {[%clk 0:01:53]} 19. Nh5 {[%clk 0:02:09]}  Rg8 {[%clk 0:01:44]} 20. Rfe1 {[%clk 0:02:05]}  Ra6 {[%clk 0:01:24]} 21. Bc7 {[%clk 0:01:59]}  Nb6 {[%clk 0:01:09]} 22. Nf4 {[%clk 0:01:42]}  Nc4 {[%clk 0:01:04]} 23. Ne5 {[%clk 0:01:33]}  Nxe5 {[%clk 0:00:51]} 24. Bxe5 {[%clk 0:01:34]}  Kd7 {[%clk 0:00:48]} 25. Re3 {[%clk 0:01:31]}  Rc8 {[%clk 0:00:42]} 26. Ree1 {[%clk 0:01:05]}  Rc1 {[%clk 0:00:39]} 27. Bf1 {[%clk 0:01:05]}  Rb6 {[%clk 0:00:31]} 28. Bxg7 {[%clk 0:01:00]}  Nc2 {[%clk 0:00:26]} 29. Rexc1 {[%clk 0:00:48]}  bxc1=Q {[%clk 0:00:26]} 30. Rxb6 {[%clk 0:00:49]}  Kc7 {[%clk 0:00:25]} 31. Rb3 {[%clk 0:00:45]}  Ba6 {[%clk 0:00:19]} 32. Be5+ {[%clk 0:00:45]}  Bd6 {[%clk 0:00:18]} 33. Bxd6+ {[%clk 0:00:42]}  Kxd6 {[%clk 0:00:17]} 34. Rb6+ {[%clk 0:00:43]}  Kc7 {[%clk 0:00:16]} 35. Rxa6 {[%clk 0:00:43]}  Qxf4 {[%clk 0:00:16]} 36. Rxa5 {[%clk 0:00:42]}  Nxd4 {[%clk 0:00:15]} 37. Bg2 {[%clk 0:00:42]}  Ne2+ {[%clk 0:00:15]} 38. Kh1 {[%clk 0:00:39]}  Qxh4+ {[%clk 0:00:14]} 0-1


[Site "https://www.chess.com"]

[Event "Titled Tuesday Blitz March 07 Early 2023"]
[White "Di Nicolantonio, Lucas"]
[Black "EREBUNI91"]
[WhiteFideId "680460"]
[WhiteElo "2358"]
[BlackElo "2732"]
[Result "0-1"]
[Round "06"]
[TimeControl "180+2"]
[Date "2023.03.07"]
[WhiteClock "0:00:05"]
[BlackClock "0:00:20"]

1. Nf3 {[%clk 0:03:00]}  Nf6 {[%clk 0:02:59]} 2. c4 {[%clk 0:03:00]}  b6 {[%clk 0:03:00]} 3. g3 {[%clk 0:02:59]}  Bb7 {[%clk 0:03:00]} 4. Bg2 {[%clk 0:03:00]}  e6 {[%clk 0:03:01]} 5. O-O {[%clk 0:03:01]}  Be7 {[%clk 0:03:01]} 6. Nc3 {[%clk 0:03:00]}  d5 {[%clk 0:03:02]} 7. Ne5 {[%clk 0:02:51]}  O-O {[%clk 0:02:54]} 8. d4 {[%clk 0:02:51]}  Nbd7 {[%clk 0:02:54]} 9. Qa4 {[%clk 0:02:48]}  c6 {[%clk 0:02:53]} 10. Bf4 {[%clk 0:02:31]}  Nxe5 {[%clk 0:02:47]} 11. dxe5 {[%clk 0:02:31]}  Nd7 {[%clk 0:02:47]} 12. cxd5 {[%clk 0:02:31]}  cxd5 {[%clk 0:02:48]} 13. Rac1 {[%clk 0:02:28]}  a6 {[%clk 0:02:47]} 14. Rfd1 {[%clk 0:02:11]}  Rc8 {[%clk 0:02:43]} 15. e4 {[%clk 0:01:56]}  Nc5 {[%clk 0:02:42]} 16. Qd4 {[%clk 0:01:54]}  dxe4 {[%clk 0:02:39]} 17. Qe3 {[%clk 0:01:51]}  Qe8 {[%clk 0:02:28]} 18. b4 {[%clk 0:01:27]}  Na4 {[%clk 0:02:25]} 19. Nxe4 {[%clk 0:01:13]}  Nb2 {[%clk 0:02:11]} 20. Rf1 {[%clk 0:00:40]}  Nc4 {[%clk 0:02:09]} 21. Qb3 {[%clk 0:00:26]}  Bd5 {[%clk 0:01:57]} 22. Nd6 {[%clk 0:00:18]}  Bxd6 {[%clk 0:01:38]} 23. Bxd5 {[%clk 0:00:17]}  exd5 {[%clk 0:01:35]} 24. exd6 {[%clk 0:00:18]}  Qe6 {[%clk 0:01:34]} 25. Rfe1 {[%clk 0:00:17]}  Qf5 {[%clk 0:01:24]} 26. Rcd1 {[%clk 0:00:17]}  Rfd8 {[%clk 0:01:15]} 27. Qd3 {[%clk 0:00:17]}  Nxd6 {[%clk 0:01:08]} 28. Bxd6 {[%clk 0:00:10]}  Qxd3 {[%clk 0:01:03]} 29. Rxd3 {[%clk 0:00:11]}  Rxd6 {[%clk 0:01:04]} 30. Re7 {[%clk 0:00:09]}  Rcd8 {[%clk 0:00:53]} 31. Ra7 {[%clk 0:00:08]}  b5 {[%clk 0:00:51]} 32. Kg2 {[%clk 0:00:08]}  d4 {[%clk 0:00:46]} 33. Kf3 {[%clk 0:00:07]}  Rf6+ {[%clk 0:00:40]} 34. Kg2 {[%clk 0:00:08]}  h6 {[%clk 0:00:37]} 35. h4 {[%clk 0:00:08]}  Rc6 {[%clk 0:00:31]} 36. a3 {[%clk 0:00:07]}  h5 {[%clk 0:00:27]} 37. Kf3 {[%clk 0:00:07]}  g6 {[%clk 0:00:21]} 38. Kg2 {[%clk 0:00:05]}  Kg7 {[%clk 0:00:20]} 39. Rf3 {[%clk 0:00:05]}  Rf6 {[%clk 0:00:20]} 40. Rxf6 {[%clk 0:00:05]}  Kxf6 {[%clk 0:00:21]} 41. Rxa6+ {[%clk 0:00:06]}  Ke5 {[%clk 0:00:21]} 42. a4 {[%clk 0:00:05]}  d3 {[%clk 0:00:20]} 0-1


[Site "https://www.chess.com"]